[Event "27th OIBM 2024"]
[Site "Gmund am Tegernsee"]
[Date "2024.10.28"]
[Round "3.9"]
[White "Berry, Neil"]
[Black "Quparadze, Giga"]
[Result "0-1"]
[ECO "E11"]
[WhiteElo "2248"]
[BlackElo "2522"]
[Annotator "TA"]
[PlyCount "132"]
[EventDate "2024.09.16"]
[EventType "swiss"]
[EventCountry "GER"]
[SourceTitle "playchess.com"]
[Source "ChessBase"]
[SourceQuality "1"]
[TimeControl "40/5400+30:1800+30"]

{[%evp 9,132,24,26,22,44,39,50,49,62,47,66,61,52,44,50,44,39,52,57,58,50,35,48,23,43,22,28,16,50,14,19,6,14,11,71,66,79,91,79,82,110,113,99,43,49,60,78,5,3,9,10,0,9,10,15,0,68,0,8,8,36,53,43,35,41,6,72,55,109,0,0,0,8,0,0,-520,-750,-562,-562,-628,-576,-691,-610,-462,-36,-36,-36,-1719,-1162,-29940,-29943,-29945,-29949,-29943,-29951,-29954,-29950,-29950,-25,-25,-25,-36,-36,-36,-36,-29962,-29967,-29969,-29968,-29980,-29981,-29982,-29983,-29983,-29984,-29990,-29985,-29985,-29986,-29986,-29987,-29987,-29982,-29982,-29983]} 1. d4 {[%emt 0:00:08]} Nf6 {[%emt 0:00:05]} 2. c4 {[%emt 0:00:11]} e6 {[%emt 0:00:05]} 3. Nf3 {[%emt 0:00:21]} Bb4+ {[%emt 0:00:07]} 4. Nbd2 {[%emt 0:00:52]} a5 {[%emt 0:00:51]} 5. a3 {[%emt 0:00:55]} Bxd2+ {[%emt 0:00:57]} 6. Bxd2 {[%emt 0:02:17]} O-O {[%emt 0:00:24]} 7. Qc2 {[%emt 0:03:44]} d5 {[%emt 0:00:14]} 8. Bg5 {[%emt 0:01:52] White is slightly better.} Nbd7 {[%emt 0:02:01]} 9. e3 {[%emt 0:00:33]} h6 {[%emt 0:00:24]} 10. Bh4 {[%emt 0:01:16]} a4 {[%emt 0:01:36]} 11. Bd3 {[%emt 0:03:39]} c5 {[%emt 0:00:59]} 12. O-O {[%emt 0:21:48]} dxc4 {[%emt 0:00:07]} 13. Bxc4 {[%emt 0:01:07]} cxd4 {[%emt 0:00:33]} 14. Nxd4 {[%emt 0:03:24]} (14. exd4 Qa5 $11) 14... Ne5 {[%emt 0:00:11]} 15. Be2 {[%emt 0:00:58]} Ng6 {[%emt 0:05:22]} 16. Bg3 {[%emt 0:06:21]} e5 {[%emt 0:00:27]} 17. Nb5 {[%emt 0:00:26]} Be6 {[%emt 0:03:19]} 18. Rfd1 {[%emt 0:09:04]} Qc8 {[%emt 0:01:24]} 19. Qc7 {[%emt 0:03:09]} Bb3 {[%emt 0:01:24]} 20. Rdc1 {[%emt 0:00:52]} Qxc7 {[%emt 0:04:04]} 21. Rxc7 {[%emt 0:00:30]} Rad8 {[%emt 0:00:05]} (21... Rfd8 $11) 22. Rxb7 $16 {[%emt 0:04:15]} Rd2 {[%emt 0:00:04]} 23. Nc3 {[%emt 0:00:57]} Rc8 {[%emt 0:00:05][%cal Oc8c3] aiming for ...Rxc3!} 24. Bf1 $1 {[%emt 0:03:40]} Ra8 {[%emt 0:05:12]} 25. f3 {[%emt 0:03:54]} e4 {[%emt 0:01:25]} 26. Nxe4 {[%emt 0:02:54]} (26. Be1 $16 Rc2 27. fxe4) 26... Nxe4 $14 {[%emt 0:00:05]} 27. fxe4 {[%emt 0:00:05]} Rc8 {[%emt 0:01:29]} 28. Rb8 {[%emt 0:05:22]} (28. Rb1 $16) 28... Rxb8 $1 $11 {[%emt 0:00:06]} 29. Bxb8 {[%emt 0:00:05]} Rxb2 {[%emt 0:00:03]} 30. Ba7 {[%emt 0:02:50]} Nh4 {[%emt 0:00:06]} 31. Bd4 {[%emt 0:01:22]} Rc2 {[%emt 0:00:05]} 32. Re1 {[%emt 0:02:00]} Be6 {[%emt 0:00:53]} ({Better is} 32... Ra2 $11) 33. Be2 {[%emt 0:05:41]} (33. Re2 $1 $14 Rc1 34. Kf2) 33... Bg4 {[%emt 0:01:14]} 34. Kf1 {[%emt 0:01:24]} (34. Bxg4 Rxg2+ (34... Nxg2 $2 35. Re2 $18) 35. Kf1 Rxg4 $17) (34. Bf1 Bf3 $14) 34... Nxg2 {[%emt 0:02:06]} 35. Bxg4 {[%emt 0:03:27] A strong pair of Bishops.} Nxe1 {[%emt 0:00:04]} 36. Kxe1 {[%emt 0:00:05] Strongly threatening h3.} Rxh2 {[%emt 0:00:02]} 37. Bd7 {[%emt 0:00:46]} Ra2 {[%emt 0:00:06]} (37... h5 $11) 38. Bc5 $16 {[%emt 0:00:56][%cal Oe4e5]} h5 {[%emt 0:00:11]} (38... g5 $14) 39. Bxa4 {[%emt 0:00:20]} ({Only move:} 39. e5 $1 $16) 39... g5 $1 $11 {[%emt 0:00:10]} 40. Bd7 {[%emt 0:00:44]} g4 {[%emt 0:00:24]} 41. e5 {[%emt 0:31:43]} g3 {[%emt 0:31:09]} 42. e6 $2 {[%emt 0:03:26][%mdl 8192]} (42. Kf1 $1 $11 {and White stays safe.}) 42... g2 $19 {[%emt 0:00:51][%cal Rg2g1]} 43. e4 {[%emt 0:00:04]} Ra1+ {[%emt 0:00:18]} 44. Ke2 {[%emt 0:00:09] [#]} fxe6 {[%emt 0:00:13]} 45. Bxe6+ {[%emt 0:00:20]} Kg7 {[%emt 0:00:13]} 46. Bd4+ {[%emt 0:00:54] [#]} Kg6 $2 {[%emt 0:00:32]} (46... Kh6 $1 $19 47. Be3+ Kg6 48. Bf5+ Kf7) 47. Bf5+ $1 $15 {[%emt 0:01:25]} Kf7 {[%emt 0:00:10][%cal Oh5h4] And now ...h4! would win.} 48. a4 $2 {[%emt 0:01:03][%mdl 8192] [#]} (48. Kf3 $15 g1=Q (48... g1=R 49. Bxa1 Rxa1 50. Kf4 $15) 49. Bxg1 Rxg1 50. Kf4) 48... h4 $1 $19 {[%emt 0:01:30]} 49. a5 {[%emt 0:00:48]} (49. Bxa1 g1=Q) 49... g1=Q {[%emt 0:00:09]} (49... g1=R 50. Bxg1 Rxg1 51. a6 $19) 50. Bxg1 {[%emt 0:00:05]} Rxg1 {[%emt 0:00:10] KR-KB} 51. a6 {[%emt 0:00:43]} Kf6 {[%emt 0:00:51]} 52. Bc8 {[%emt 0:00:45]} Rg3 {[%emt 0:00:24]} 53. Kf2 {[%emt 0:00:36]} Kg5 $2 {[%emt 0:00:44]} (53... Rc3 {mates} 54. Bb7 Ra3 55. Bc8 Ke5 56. Bf5 Rxa6 57. Kg2 Kf6 58. Kh3 Kg5 59. Kh2 Ra2+ 60. Kh3 Re2 61. Bd7 Re3+ (61... Rxe4 $2 62. Kh2 $19) 62. Kh2 Rxe4 63. Kh3 Re3+ 64. Kg2 Rg3+ 65. Kh2 Rd3 66. Bc8 Rf3 67. Kg2 Kf4 68. Bh3 Rc3 69. Be6 Rg3+ 70. Kh2 h3 71. Bf5 Rg2+ 72. Kxh3 Rg3+ 73. Kh2 Kf3 74. Bd3 Kf2 75. Bc2 Ra3 76. Bd1 Ra1 77. Bh5 Ra5 78. Bf7 Ra7 79. Bg6 Ra6 80. Bh5 Rh6 81. Kh3 Rxh5+ 82. Kg4 Re5 83. Kf4 Re3 84. Kg5 Kf3 85. Kf5 Re4 86. Kg6 Kf4 87. Kf6 Kg4 88. Kg7 Kf5 89. Kf7 Kg5 90. Kg7 Rf4 91. Kh8 Kh6 92. Kg8 Kg6 93. Kh8 Rf8#) 54. e5 $11 {[%emt 0:00:27]} Rc3 {[%emt 0:00:53]} 55. Bb7 {[%emt 0:00:10]} Ra3 {[%emt 0:00:07] ( -> ...Kf5)} 56. e6 {[%emt 0:00:34] Threatens to win with e7.} Kf6 {[%emt 0:01:13]} 57. Kg2 $2 {[%emt 0:00:35][%mdl 8192]} (57. Bc8 $15) 57... Kxe6 {[%emt 0:00:09] Black mates.} 58. Kh2 {[%emt 0:00:43]} Kf5 {[%emt 0:00:31]} 59. Kg2 {[%emt 0:00:22]} h3+ {[%emt 0:00:34]} 60. Kh2 {[%emt 0:00:05]} Kg4 {[%emt 0:00:05]} 61. Bc8+ {[%emt 0:01:05]} Kh4 {[%emt 0:00:06]} 62. Bb7 {[%emt 0:00:36]} Ra2+ {[%emt 0:00:08]} 63. Kg1 {[%emt 0:00:05]} h2+ {[%emt 0:00:07]} 64. Kf1 {[%emt 0:00:38]} Kg3 {[%emt 0:00:07]} 65. Ke1 {[%emt 0:00:38]} h1=Q+ {[%emt 0:00:19]} 66. Bxh1 {[%emt 0:00:16]} Ra1+ {[%emt 0:00:02] Weighted Error Value: White=0.53/Black=0.26 (precise) .  Loses game:     	White=3     	---        Mistake:       	White=4     	Black=4      Inaccurate:     	White=3     	Black=3      OK:         	White=12    	Black=19     Best:        	White=1     	Black=4      Strong:       	White=1     	Black=2} ({Weaker is} 66... Rxa6 67. Bd5 $11) 0-1

[Event "27th OIBM 2024"]
[Site "Gmund am Tegernsee"]
[Date "2024.10.28"]
[Round "3.10"]
[White "Deuer, Marius"]
[Black "Ploetz, Werner"]
[Result "1-0"]
[ECO "A19"]
[WhiteElo "2477"]
[BlackElo "2229"]
[Annotator "TA"]
[PlyCount "83"]
[EventDate "2024.09.16"]
[EventType "swiss"]
[EventCountry "GER"]
[SourceTitle "playchess.com"]
[Source "ChessBase"]
[SourceQuality "1"]
[TimeControl "40/5400+30:1800+30"]

{[%evp 20,83,22,23,13,12,27,22,19,25,23,23,26,24,17,47,72,22,34,37,83,86,78,68,84,98,85,93,110,95,126,126,122,122,195,188,197,195,239,227,296,264,300,298,339,349,344,336,484,475,461,439,478,452,635,621,638,637,629,618,614,603,650,645,805,773]} 1. c4 {[%emt 0:00:03]} Nf6 {[%emt 0:00:10]} 2. Nc3 {[%emt 0:00:06]} e6 {[%emt 0:00:15]} 3. e4 {[%emt 0:00:12][%cal Be2e4,Be4e5][%mdl 32]} c5 {[%emt 0:00:20]} 4. e5 {[%emt 0:00:14]} Ng8 {[%emt 0:00:19]} 5. Nf3 {[%emt 0:00:08]} Nc6 {[%emt 0:00:35]} 6. d4 {[%emt 0:00:38]} cxd4 {[%emt 0:01:10]} 7. Nxd4 {[%emt 0:00:05]} Nxe5 {[%emt 0:00:40]} 8. Ndb5 {[%emt 0:00:30]} a6 {[%emt 0:01:19]} 9. Nd6+ {[%emt 0:00:09]} Bxd6 {[%emt 0:00:08]} 10. Qxd6 {[%emt 0:00:05]} f6 {[%emt 0:00:21]} 11. Be3 {[%emt 0:00:22][%mdl 1024] White has compensation.} Ne7 {[%emt 0:00:37]} 12. Bb6 {[%emt 0:01:01]} Nf5 {[%emt 0:00:26]} 13. Qb4 {[%emt 0:00:08]} Nc6 {[%emt 0:00:44] The position is equal.} 14. Qc5 {[%emt 0:00:25]} Qe7 {[%emt 0:01:44]} 15. Qxe7+ {[%emt 0:00:46]} Ncxe7 {[%emt 0:05:39]} 16. O-O-O {[%emt 0:03:17]} d5 {[%emt 0:02:28]} 17. b3 {[%emt 0:02:08]} O-O {[%emt 0:13:27]} 18. Be2 {[%emt 0:18:39] White is more active.} (18. Kb2 $16) 18... Bd7 {[%emt 0:10:38]} 19. cxd5 {[%emt 0:29:21]} Nxd5 {[%emt 0:03:50]} (19... Rfc8 $14 20. Kb2 Rxc3) 20. Nxd5 $16 {[%emt 0:00:06] Black is on the road to losing.} exd5 {[%emt 0:00:45]} 21. Rxd5 {[%emt 0:00:18]} Rac8+ {[%emt 0:03:11]} 22. Kb2 {[%emt 0:03:09]} Be6 {[%emt 0:01:01]} 23. Rd2 {[%emt 0:00:07]} Rfe8 {[%emt 0:24:43]} 24. Bf3 {[%emt 0:07:10][%cal Oh1e1]} Re7 {[%emt 0:06:41]} 25. g3 {[%emt 0:00:35] Prevents Nh4} Kf7 {[%emt 0:04:12]} 26. Rhd1 {[%emt 0:02:54] Black must now prevent Bd8.} Ke8 {[%emt 0:03:36]} (26... Ree8 $16 27. Bd8 (27. Bxb7 Rb8 $11) 27... Rb8) 27. Rd8+ $18 {[%emt 0:05:20]} Kf7 {[%emt 0:00:17]} 28. a4 {[%emt 0:00:54][%cal Ba2a4,Ba4a5][%mdl 32]} g6 {[%emt 0:01:03]} 29. a5 {[%emt 0:05:09]} Ng7 {[%emt 0:02:09]} 30. Rxc8 {[%emt 0:02:03]} Bxc8 {[%emt 0:00:14]} 31. Rd8 {[%emt 0:00:03]} Re8 {[%emt 0:03:34] [#]} 32. Rxc8 {[%emt 0:00:57][%mdl 512]} Rxc8 {[%emt 0:00:07]} 33. Bxb7 {[%emt 0:00:04][%mdl 4096] Endgame. KRN-KB} Re8 {[%emt 0:00:24]} (33... Rb8 {was worth a try.} 34. Bxa6 Ke6) 34. Bxa6 {[%emt 0:00:08] White is clearly winning.} Nf5 {[%emt 0:05:36]} 35. Bb7 {[%emt 0:03:56]} Nd6 {[%emt 0:01:23]} 36. Bd5+ {[%emt 0:00:33]} Ke7 {[%emt 0:00:16]} (36... Kg7 $142 37. Kc3 (37. a6 Re2+ 38. Ka3 Re5 $18) 37... g5) 37. a6 {[%emt 0:01:39]} Nc8 {[%emt 0:01:19]} 38. Bc5+ {[%emt 0:00:05] This pair of bishops is nice.} Kd7 {[%emt 0:00:10]} 39. a7 {[%emt 0:00:17]} Nxa7 {[%emt 0:00:53]} 40. Bxa7 {[%emt 0:00:07]} Kd6 {[%emt 0:00:20]} 41. Bf3 {[%emt 0:31:14]} h5 {[%emt 0:30:56]} 42. b4 {[%emt 0:00:18] Weighted Error Value: White=0.02 (flawless) /Black=0.31.  Mistake:       	White=1     	Black=4      Inaccurate:     	---       	Black=2      OK:         	White=17    	Black=9      Best:        	White=3     	---} 1-0

[Event "27th OIBM 2024"]
[Site "Gmund am Tegernsee"]
[Date "2024.10.28"]
[Round "3.11"]
[White "Schnepp, Gunnar"]
[Black "Costa, Leonardo"]
[Result "0-1"]
[ECO "B43"]
[WhiteElo "2243"]
[BlackElo "2472"]
[Annotator "TA"]
[PlyCount "68"]
[EventDate "2024.09.16"]
[EventType "swiss"]
[EventCountry "GER"]
[SourceTitle "playchess.com"]
[Source "ChessBase"]
[SourceQuality "1"]
[TimeControl "40/5400+30:1800+30"]

{[%evp 12,68,31,25,39,43,25,22,5,0,34,10,35,29,121,100,117,0,6,0,35,35,105,114,246,181,186,195,170,139,145,145,142,133,138,110,63,-53,-58,-102,-76,-78,-71,-304,-233,-220,-67,-108,0,0,0,-5,-1,-1,0,-553,-575,-509,-403]} 1. e4 {[%emt 0:00:03]} c5 {[%emt 0:00:04]} 2. Nf3 {[%emt 0:00:16]} e6 {[%emt 0:00:03]} 3. d4 {[%emt 0:01:12]} cxd4 {[%emt 0:00:05]} 4. Nxd4 {[%emt 0:00:06]} a6 {[%emt 0:00:02]} 5. a3 {[%emt 0:01:58]} Nf6 {[%emt 0:00:04]} 6. Nc3 {[%emt 0:00:21]} Qc7 {[%emt 0:00:19]} 7. f4 {[%emt 0:01:00]} d6 {[%emt 0:00:45]} 8. Bd3 {[%emt 0:06:43]} Nbd7 {[%emt 0:05:14]} 9. Be3 {[%emt 0:01:15]} Nc5 {[%emt 0:03:45] The position is equal.} 10. g4 {[%emt 0:07:12][%cal Bg2g4,Bg4g5][%mdl 32]} h6 {[%emt 0:11:11]} 11. Qf3 {[%emt 0:07:12]} b5 {[%emt 0:03:53]} 12. Rf1 {[%emt 0:19:59]} Bb7 {[%emt 0:08:15]} (12... Nfd7 $11 {keeps the balance.}) 13. g5 $1 $16 {[%emt 0:04:32]} Nfd7 {[%emt 0:00:07] [#]} 14. h4 {[%emt 0:03:23]} (14. g6 $1 $16) 14... hxg5 {[%emt 0:00:35]} 15. hxg5 {[%emt 0:00:25]} g6 {[%emt 0:09:21]} 16. O-O-O {[%emt 0:03:13]} Nb6 {[%emt 0:18:34]} (16... O-O-O $14) 17. Kb1 {[%emt 0:05:02]} d5 {[%emt 0:08:59]} (17... O-O-O $16) 18. f5 $18 {[%emt 0:07:10]} gxf5 {[%emt 0:03:32]} 19. exf5 {[%emt 0:03:22]} e5 {[%emt 0:00:04][%cal Oe8c8]} 20. Qg3 {[%emt 0:14:53]} O-O-O {[%emt 0:02:31] [#]} 21. Ndxb5 {[%emt 0:02:13][%mdl 512]} axb5 {[%emt 0:00:04]} 22. Nxb5 {[%emt 0:00:08]} Qb8 {[%emt 0:03:56]} 23. g6 {[%emt 0:04:34]} Rg8 {[%emt 0:00:56]} 24. Qh3 {[%emt 0:02:35]} (24. gxf7 $2 Rxg3 25. Bxc5 Bxc5 $19) ({White should try} 24. Bg5 $14 Nbd7 25. gxf7 Rxg5 26. Qxg5) 24... f6 $15 {[%emt 0:01:14] ...d4 would now be deadly.} 25. Qh4 {[%emt 0:03:06] [#]} d4 $1 {[%emt 0:00:46]} (25... Nxd3 $2 26. Bxb6 (26. cxd3 Bc6 $18) 26... Bc6 27. Na7+ (27. cxd3 Qxb6 28. Qxf6 Qxb5 $11) (27. Bxd8 Nxb2 28. Rf3 Nxd1 $11) (27. Qxf6 Qxb6 $16) 27... Kd7 28. Qxf6 (28. Bxd8 $2 Qxb2#) 28... Qxb6 29. Rxd3 $18) 26. Nxd4 {[%emt 0:00:49] Hoping for Ne6.} Nd5 {[%emt 0:02:49] Really sharp!} (26... Rxd4 27. Bxd4 exd4 28. Rfe1 $14 (28. Qxf6 Qd6 $16)) 27. Bg1 {[%emt 0:00:43]} (27. Ne6 $17 Nxe6 (27... Nxe3 $2 {is the wrong capture.} 28. Nxd8 Bd5 29. Qxf6 $16) 28. fxe6 Nxe3 29. e7 Bxe7 (29... Nxf1 30. Qc4+ Qc7 31. Bf5+ Kb8 32. Qxc7+ Kxc7 33. exd8=Q+ Kc6 34. Bd7+ Kc5 35. Qc7+) 30. Qh3+ Kc7 (30... f5 $2 31. Bxf5+ Nxf5 32. Qxf5+ Kc7 33. Qxe5+ Kb6 34. Qxe7 $18) 31. Qxe3) 27... exd4 {[%emt 0:00:11]} 28. Bxd4 {[%emt 0:00:25]} Be7 $2 {[%emt 0:03:10]} (28... Nxd3 $19 29. Rxd3 Bg7) 29. Bc4 {[%emt 0:00:34]} Rg7 {[%emt 0:02:51]} (29... Rh8 $17 30. Qg4 Qc7) 30. Bxd5 {[%emt 0:00:27]} (30. Qh6 $5 Rgg8 $8 31. Qh7 $15 (31. g7 Qc7 $15)) 30... Bxd5 {[%emt 0:00:06]} 31. Bxf6 {[%emt 0:00:12]} Bxf6 {[%emt 0:01:33]} 32. Qxf6 {[%emt 0:00:03]} Rgd7 {[%emt 0:00:06] Strongly threatening ...Qb5.} 33. Ka1 $2 {[%emt 0:01:17][%mdl 8192]} (33. Rxd5 $1 $11 Rxd5 34. Qc6+ Qc7 35. Qa8+ Qb8 36. Qc6+ Qc7 37. Qa8+ Qb8 38. Qc6+) 33... Qb5 $19 {[%emt 0:01:03] White must now prevent ...Qc4.} 34. Qc3 {[%emt 0:00:31]} Bg2 {[%emt 0:02:35] Weighted Error Value: White=0.48/Black=0.29 (precise) .  Loses game:     	White=2     	---        Mistake:       	White=2     	Black=5      Inaccurate:     	White=1     	Black=2      OK:         	White=7     	Black=8      Best:        	White=2     	Black=3      Strong:       	White=1     	Black=1} 0-1

[Event "27th OIBM 2024"]
[Site "Gmund am Tegernsee"]
[Date "2024.10.28"]
[Round "3.12"]
[White "Schneider, Ilja"]
[Black "Ongut, Tamas Gunes"]
[Result "0-1"]
[ECO "E04"]
[WhiteElo "2449"]
[BlackElo "2224"]
[Annotator "TA"]
[PlyCount "84"]
[EventDate "2024.09.16"]
[EventType "swiss"]
[EventCountry "GER"]
[SourceTitle "playchess.com"]
[Source "ChessBase"]
[SourceQuality "1"]
[TimeControl "40/5400+30:1800+30"]

{[%evp 22,84,10,8,17,24,32,10,8,0,0,0,2,5,14,-23,-18,-22,-17,-75,-16,-128,-93,-120,-125,-125,-106,-131,-113,-122,-40,-29,-19,-18,0,0,2,0,-6,-12,-9,-9,0,0,0,0,0,-1,0,0,-8,-11,-9,-11,-10,-117,-116,-189,-97,-283,-279,-354,-347,-337,-331]} 1. Nf3 {[%emt 0:00:08]} d5 {[%emt 0:01:01]} 2. d4 {[%emt 0:01:23]} Nf6 {[%emt 0:00:50]} 3. c4 {[%emt 0:00:16]} e6 {[%emt 0:01:47]} 4. g3 {[%emt 0:00:37]} dxc4 {[%emt 0:00:53]} 5. Bg2 {[%emt 0:00:08]} c5 {[%emt 0:00:14]} 6. Qa4+ {[%emt 0:02:42]} Nc6 {[%emt 0:15:20]} 7. O-O {[%emt 0:01:36]} Bd7 {[%emt 0:00:25]} 8. Qxc4 {[%emt 0:02:23]} cxd4 {[%emt 0:00:37]} 9. Nxd4 {[%emt 0:02:08]} Rc8 {[%emt 0:00:09]} 10. Nc3 {[%emt 0:16:12]} Nxd4 {[%emt 0:01:15]} 11. Qxd4 {[%emt 0:00:06]} Bc5 {[%emt 0:00:16]} 12. Qh4 {[%emt 0:00:39]} h6 {[%emt 0:00:18]} 13. Bxb7 {[%emt 0:04:16]} Rb8 {[%emt 0:00:09]} 14. Bf3 {[%emt 0:00:28]} Rb4 {[%emt 0:02:13] The position is equal.} 15. Qh3 {[%emt 0:04:00]} e5 {[%emt 0:03:58]} 16. Qg2 {[%emt 0:02:31]} Qc8 {[%emt 0:00:27]} 17. Rd1 {[%emt 0:04:40][%cal Og3g4]} O-O {[%emt 0:03:19]} 18. a3 {[%emt 0:07:43]} Bh3 {[%emt 0:05:44]} 19. Qh1 {[%emt 0:00:10]} Rb3 $36 {[%emt 0:06:13][%mdl 2048] Hoping for ...Rd8. White is under pressure.} (19... Rd4 {simplifies} 20. Be3 Rxd1+ 21. Rxd1 Bxe3 22. fxe3 Re8) 20. Bd2 {[%emt 0:08:26]} (20. Bg2 $11) 20... Qa6 {[%emt 0:10:43]} ({Better is} 20... Rd8 $17 21. Be1 Rxb2) 21. Rac1 {[%emt 0:08:22]} (21. e3 $11 {keeps the balance.}) 21... Rxb2 $17 {[%emt 0:04:34][%cal Of8d8] Black has more active pieces.} 22. Nd5 {[%emt 0:09:09][%cal Bc3d5,Bd5e3,Be3c4,Bc4d6][%mdl 32]} Rc8 {[%emt 0:19:24]} 23. Be3 {[%emt 0:14:11]} Bxe3 {[%emt 0:00:55]} (23... Bxa3 $6 24. Ra1 Rcb8 25. Nxf6+ Qxf6 26. Be4 $14 (26. Rxa3 Rb1 $17)) 24. Rxc8+ {[%emt 0:00:16]} Bxc8 {[%emt 0:00:07]} 25. Nxe3 {[%emt 0:00:12]} Bh3 {[%emt 0:01:38]} (25... Qxa3 26. Nc4 (26. Rd8+ Kh7 $18) 26... Qc3 27. Nxb2 $18) (25... Be6 $17 26. Be4 g6 (26... Qxe2 27. Rd8+)) 26. Be4 $1 $15 {[%emt 0:03:46]} g6 {[%emt 0:04:29][%cal Of6e4]} ({Worse is} 26... Qxe2 27. Rd8+) 27. Bd3 {[%emt 0:07:32]} Qb7 {[%emt 0:03:00]} (27... Qxa3 $2 {perishes.} 28. Nc4 Qb4 29. Nxb2 Qxb2 30. Qa8+ Kg7 31. Qxa7 $18) (27... Qa4 {feels hotter.} 28. Qa8+ Kg7 29. Qd8 Be6) 28. Nc4 {[%emt 0:00:00]} Qxh1+ {[%emt 0:01:16]} 29. Kxh1 {[%emt 0:00:00]} Rb5 {[%emt 0:00:11]} 30. Nd6 {[%emt 0:00:00]} Rd5 {[%emt 0:00:22]} 31. Bc2 {[%emt 0:00:00]} Be6 {[%emt 0:05:47]} 32. Rxd5 {[%emt 0:00:00]} Bxd5+ $11 {[%emt 0:00:16][%mdl 4096] Endgame. KBN-KBN} 33. Kg1 {[%emt 0:00:00]} Kf8 {[%emt 0:00:37]} 34. f3 {[%emt 0:01:20]} Ne8 {[%emt 0:00:27]} 35. Nc8 {[%emt 0:01:03]} a5 {[%emt 0:00:08]} 36. Ba4 {[%emt 0:00:50]} Be6 {[%emt 0:00:35]} 37. Na7 {[%emt 0:00:56]} Nd6 {[%emt 0:00:08]} 38. Bc2 {[%emt 0:00:43]} (38. e4 $11) 38... Bd7 {[%emt 0:01:37] ...Ke7 would now be deadly.} 39. f4 {[%emt 0:00:22]} (39. Bb3 $17) 39... Nc4 {[%emt 0:00:42]} (39... a4 $19 40. Kf2 Nc4) 40. Bd3 $2 {[%emt 0:00:35] [#]} (40. a4 $17 {was the only chance.}) 40... Nxa3 $19 {[%emt 0:00:21] aiming for ...Ke7.} 41. Kf2 {[%emt 0:30:12]} exf4 {[%emt 0:30:52]} 42. gxf4 {[%emt 0:00:20]} Ke7 {[%emt 0:02:07] Weighted Error Value: White=0.27 (precise) /Black=0.12 (very precise) .  Loses game:     	White=1     	---        Mistake:       	White=4     	Black=3      Inaccurate:     	White=1     	---        OK:         	White=11    	Black=16     Best:        	---       	Black=3      Strong:       	White=1     	---} 0-1

[Event "27th OIBM 2024"]
[Site "Gmund am Tegernsee"]
[Date "2024.10.28"]
[Round "3.13"]
[White "Heinz, Axel"]
[Black "Vatter, Hans-Joachim"]
[Result "1/2-1/2"]
[ECO "B11"]
[WhiteElo "2412"]
[BlackElo "2217"]
[Annotator "RC"]
[PlyCount "65"]
[EventDate "2024.09.16"]
[EventType "swiss"]
[EventCountry "GER"]
[SourceTitle "playchess.com"]
[Source "ChessBase"]
[SourceQuality "1"]
[TimeControl "40/5400+30:1800+30"]

1. e4 {[%emt 0:00:02]} c6 {[%emt 0:00:11]} 2. Nc3 {[%emt 0:00:17]} d5 {[%emt 0:00:16]} 3. Nf3 {[%emt 0:00:06]} Bg4 {[%emt 0:00:29]} 4. h3 {[%emt 0:00:11]} Bxf3 {[%emt 0:00:55]} 5. Qxf3 {[%emt 0:00:05]} e6 {[%emt 0:00:13]} 6. g3 {[%emt 0:07:05]} Nd7 {[%emt 0:02:05]} 7. Bg2 {[%emt 0:02:18]} Ngf6 {[%emt 0:03:11]} 8. Qe2 {[%emt 0:03:30]} dxe4 {[%emt 0:14:10]} 9. Nxe4 {[%emt 0:00:04]} Nxe4 {[%emt 0:00:09]} 10. Qxe4 {[%emt 0:00:04]} Nf6 {[%emt 0:01:01]} 11. Qe2 {[%emt 0:03:53]} Be7 {[%emt 0:09:28]} 12. O-O {[%emt 0:00:12]} O-O {[%emt 0:00:53]} 13. c3 {[%emt 0:10:36]} Re8 {[%emt 0:05:13]} 14. d4 {[%emt 0:00:07]} Rc8 {[%emt 0:01:45]} 15. Bd2 {[%emt 0:13:34]} Qd7 {[%emt 0:06:59]} 16. Rad1 {[%emt 0:01:31]} Qc7 {[%emt 0:01:20]} 17. Bc1 {[%emt 0:04:11]} Bd6 {[%emt 0:04:42]} 18. Bg5 {[%emt 0:02:48]} Be7 {[%emt 0:04:46]} 19. Bc1 {[%emt 0:02:44]} Bd6 {[%emt 0:00:38]} 20. Bg5 {[%emt 0:00:37]} Be7 {[%emt 0:00:04]} 21. Qc4 {[%emt 0:00:37]} h6 {[%emt 0:05:08]} 22. Bc1 {[%emt 0:01:02]} Bd6 {[%emt 0:02:06]} 23. Rfe1 {[%emt 0:00:37]} e5 {[%emt 0:00:25]} 24. dxe5 {[%emt 0:07:34]} Rxe5 {[%emt 0:00:41]} 25. Rxe5 {[%emt 0:00:41]} Bxe5 {[%emt 0:00:02]} 26. Bf3 {[%emt 0:02:55]} Re8 {[%emt 0:04:17]} 27. Kg2 {[%emt 0:00:18]} a6 {[%emt 0:05:22]} 28. h4 {[%emt 0:07:55]} Re6 {[%emt 0:03:00]} 29. Re1 {[%emt 0:03:27]} Re7 {[%emt 0:01:36]} 30. Rd1 {[%emt 0:01:10]} Rd7 {[%emt 0:00:28]} 31. Re1 {[%emt 0:00:16]} Re7 {[%emt 0:01:09]} 32. Rd1 {[%emt 0:02:24]} Rd7 {[%emt 0:00:03]} 33. Re1 {[%emt 0:01:32]} 1/2-1/2